bitfinex-derivatives/quotes_BTCF0:USTF0_20250504
["timestamp","ask_amount","ask_price","bid_price","bid_amount"]
[1746381561911,0.2783913,95419.0,95418.0,0.2138]
[1746381562713,0.2783913,95419.0,95418.0,0.4233935]
[1746381571325,0.0688,95419.0,95418.0,0.4233935]
[1746381573826,0.2783913,95419.0,95418.0,0.4233935]
[1746381585030,0.0366,95419.0,95418.0,0.4233935]
[1746381585939,0.0366,95419.0,95418.0,0.3595935]
[1746381586639,0.0366,95419.0,95418.0,0.3795935]
[1746381589243,0.1546,95419.0,95418.0,0.3795935]
[1746381590348,0.0366,95419.0,95418.0,0.3795935]
[1746381599555,0.0366,95419.0,95418.0,0.37590258]
[1746381599744,0.0366,95419.0,95418.0,0.23590258]
[1746381601953,0.0366,95419.0,95418.0,0.24590258]
[1746381605157,0.1546,95419.0,95418.0,0.24590258]
[1746381606246,0.0366,95419.0,95418.0,0.24590258]
[1746381607249,0.1546,95419.0,95418.0,0.24590258]
[1746381610255,0.0366,95419.0,95418.0,0.24590258]
[1746381611156,0.1546,95419.0,95418.0,0.24590258]
[1746381620066,0.1546,95419.0,95418.0,0.30880258]
[1746381629463,0.1546,95419.0,95418.0,0.68880258]
[1746381630063,0.1546,95419.0,95418.0,0.90880258]
[1746381630260,0.0366,95419.0,95418.0,0.90880258]
[1746381630661,0.0366,95419.0,95418.0,0.95426276]
[1746381631572,0.0366,95419.0,95418.0,0.90880258]
[1746381635575,0.0366,95419.0,95418.0,1.26960258]
[1746381648976,0.0366,95419.0,95418.0,0.90880258]
[1746381649176,0.0366,95419.0,95418.0,1.26960258]
[1746381652887,0.0366,95419.0,95418.0,0.90880258]
[1746381653087,0.0366,95419.0,95418.0,1.26960258]
[1746381656085,0.0366,95419.0,95418.0,0.90880258]
[1746381656286,0.0366,95419.0,95418.0,1.26960258]
[1746381664891,0.0346,95419.0,95418.0,1.26960258]
[1746381665192,0.0356,95419.0,95418.0,1.26960258]
[1746381665382,0.0336,95419.0,95418.0,1.26960258]
[1746381667307,0.0336,95419.0,95418.0,0.90880258]
[1746381667498,0.0336,95419.0,95418.0,1.26960258]
[1746381668204,0.0316,95419.0,95418.0,1.26960258]
[1746381674913,0.0316,95419.0,95418.0,0.90880258]
[1746381675110,0.0316,95419.0,95418.0,1.26960258]
[1746381677119,0.0316,95419.0,95418.0,0.90880258]
[1746381677418,0.0316,95419.0,95418.0,1.33328258]
[1746381689125,0.1496,95419.0,95418.0,1.33328258]
[1746381690116,0.0316,95419.0,95418.0,1.33328258]
[1746381690523,0.0316,95419.0,95418.0,0.97248258]
[1746381690729,0.0316,95419.0,95418.0,1.33328258]
[1746381699038,0.0629,95419.0,95418.0,1.33328258]
[1746381699237,0.1809,95419.0,95418.0,0.97248258]
[1746381699446,0.1809,95419.0,95418.0,1.33328258]
[1746381700233,0.0629,95419.0,95418.0,1.33328258]
[1746381706148,0.1809,95419.0,95418.0,1.33328258]
[1746381707142,0.0629,95419.0,95418.0,1.33328258]
[1746381709851,0.0629,95419.0,95418.0,1.37874564]
[1746381710157,0.1809,95419.0,95418.0,1.37874564]
[1746381712562,0.1809,95419.0,95418.0,1.33328258]
[1746381712750,0.1809,95419.0,95418.0,0.97328258]
[1746381715067,0.0629,95419.0,95418.0,0.97328258]
[1746381715965,0.0629,95419.0,95418.0,1.01874561]
[1746381716863,0.0629,95419.0,95418.0,0.65794561]
[1746381717168,0.0629,95419.0,95418.0,1.01874561]
[1746381719970,0.0629,95419.0,95418.0,0.97328258]
[1746381720469,0.0316,95419.0,95418.0,0.97328258]
[1746381745487,0.08011454,95428.0,95427.0,0.2095738]
[1746381745678,0.08011454,95428.0,95427.0,1.2703738]
[1746381746278,0.08011454,95428.0,95427.0,1.3031738]
[1746381746585,0.08511454,95428.0,95427.0,1.3031738]
[1746381746775,0.08511454,95428.0,95427.0,1.3353738]
[1746381747380,0.0321,95432.0,95431.0,0.209565]
[1746381747581,0.0321,95432.0,95431.0,0.973085]
[1746381748183,0.0321,95432.0,95431.0,1.038085]
[1746381748385,0.10679513,95434.0,95433.0,0.2095606]
[1746381748685,0.10679513,95434.0,95433.0,1.1695606]
[1746381748883,0.10679513,95434.0,95433.0,0.96]
[1746381749077,0.10679513,95434.0,95433.0,1.1695606]
[1746381749586,0.0321,95438.0,95437.0,0.2095518]
[1746381749781,0.0321,95438.0,95437.0,1.1695518]
[1746381750387,0.0321,95438.0,95437.0,1.2333518]
[1746381750879,0.0321,95438.0,95437.0,1.2343518]
[1746381751987,0.0321,95438.0,95437.0,1.2353518]
[1746381753878,0.0308,95446.0,95445.0,0.2095342]
[1746381754083,0.00157213,95456.0,95455.0,0.2095123]
[1746381754289,0.00157213,95456.0,95455.0,1.2803123]
[1746381755081,0.00157213,95456.0,95455.0,1.3449123]
[1746381755274,0.00157213,95456.0,95455.0,1.3529098]
[1746381755479,0.09621653,95458.0,95457.0,0.2095079]
[1746381755679,0.09621653,95458.0,95457.0,0.9995079]
[1746381756281,0.0015,95465.0,95464.0,0.2094925]
[1746381756485,0.0015,95465.0,95464.0,1.42415074]
[1746381757185,0.0015,95465.0,95464.0,1.48875074]
[1746381757381,0.0015,95465.0,95464.0,1.48975074]
[1746381757989,0.0015,95465.0,95464.0,1.49175074]
[1746381758587,0.0015,95465.0,95464.0,1.0214125]
[1746381758885,0.0015,95465.0,95464.0,0.003]
[1746381758886,0.4609903,95465.0,95464.0,0.003]
[1746381759084,0.6220903,95465.0,95464.0,0.2124925]
[1746381759389,0.3720903,95465.0,95464.0,0.2114925]
[1746381759590,0.3720903,95465.0,95464.0,0.2124925]
[1746381759990,0.3720903,95465.0,95464.0,0.2114925]
[1746381760488,0.3720903,95465.0,95464.0,0.2094925]
[1746381760688,0.3720903,95465.0,95464.0,0.2114925]
[1746381763387,0.1626,95465.0,95464.0,0.2114925]
[1746381763588,0.1526,95465.0,95464.0,0.2114925]
[1746381763892,0.1526,95465.0,95464.0,0.3314925]
[1746381764095,0.1526,95465.0,95464.0,0.3614925]
[1746381764590,0.1526,95465.0,95464.0,0.4233925]
[1746381766396,0.1195,95465.0,95464.0,0.6833925]
[1746381767186,0.0015,95465.0,95464.0,0.6833925]
[1746381771993,0.0338,95465.0,95464.0,0.6833925]
[1746381774199,0.0338,95465.0,95464.0,0.4739]
[1746381774600,0.0338,95465.0,95464.0,0.6833925]
[1746381780107,0.1518,95465.0,95464.0,0.6833925]
[1746381780809,0.1518,95465.0,95464.0,0.8633925]
[1746381781206,0.0338,95465.0,95464.0,0.8633925]
[1746381783110,0.0338,95465.0,95464.0,0.87898143]
[1746381783309,0.14394446,95465.0,95464.0,0.87898143]
[1746381785111,0.02594446,95465.0,95464.0,0.87898143]
[1746381786211,0.14394446,95465.0,95464.0,0.87898143]
[1746381787520,0.14394446,95465.0,95464.0,1.60058143]
[1746381791220,0.17724446,95465.0,95464.0,1.60058143]
[1746381791421,0.17724446,95465.0,95464.0,1.5849925]
[1746381794626,0.17724446,95465.0,95464.0,1.2241925]
[1746381795730,0.21054446,95465.0,95464.0,1.2241925]
[1746381798322,0.17724446,95465.0,95464.0,1.2241925]
[1746381798526,0.17724446,95465.0,95464.0,1.26952486]
[1746381806032,0.17724446,95465.0,95464.0,1.33300486]
[1746381806642,0.0332,95484.0,95483.0,0.2094508]
[1746381806837,0.0332,95484.0,95483.0,0.2294508]
[1746381807239,0.1512,95484.0,95483.0,0.2294508]
[1746381807742,0.1532,95484.0,95483.0,0.2294508]
[1746381808244,0.1572,95484.0,95483.0,0.2294508]
[1746381808743,0.1562,95484.0,95483.0,0.2294508]
[1746381809238,0.1532,95484.0,95483.0,0.2294508]
[1746381809436,0.1562,95484.0,95483.0,0.2294508]
[1746381809838,0.1552,95484.0,95483.0,0.2294508]
[1746381810534,0.1542,95484.0,95483.0,0.2294508]
[1746381810740,0.1552,95484.0,95483.0,0.2294508]
[1746381816539,0.3646487,95484.0,95483.0,0.2294508]
[1746381816739,0.1552,95484.0,95483.0,0.2294508]
[1746381817248,0.3646487,95484.0,95483.0,0.2294508]
[1746381817449,0.1871,95484.0,95483.0,0.2294508]
[1746381818048,0.3965487,95484.0,95483.0,0.2294508]
[1746381822444,0.1871,95484.0,95483.0,0.2294508]
[1746381822848,0.3965487,95484.0,95483.0,0.2294508]
[1746381828651,0.1871,95484.0,95483.0,0.2294508]
[1746381828844,0.3965487,95484.0,95483.0,0.2294508]
[1746381830355,0.1871,95484.0,95483.0,0.2294508]
[1746381830547,0.1871,95484.0,95483.0,0.2624508]
[1746381831049,0.1871,95484.0,95483.0,0.2942508]
[1746381831249,0.1871,95484.0,95483.0,0.3266508]
[1746381831757,0.1539,95484.0,95483.0,0.3266508]
[1746381832352,0.1539,95484.0,95483.0,0.5866508]
[1746381833246,0.1539,95484.0,95483.0,0.3266508]
[1746381840656,0.122,95484.0,95483.0,0.3266508]
[1746381840864,0.122,95484.0,95483.0,0.7866508]
[1746381844464,0.11414478,95484.0,95483.0,0.80216708]
[1746381844667,0.11414478,95484.0,95483.0,0.34216708]
[1746381847564,0.11414478,95484.0,95483.0,0.3266508]
[1746381852667,0.11414478,95484.0,95483.0,0.34211639]
[1746381855175,0.10628955,95484.0,95483.0,0.34211639]
[1746381855473,0.10628955,95484.0,95483.0,0.3266508]
[1746381856270,0.10628955,95484.0,95483.0,0.6466508]
[1746381856470,0.10628955,95484.0,95483.0,0.66211319]
[1746381859174,0.10628955,95484.0,95483.0,0.27731319]
[1746381859473,0.31573825,95484.0,95483.0,0.24491319]
[1746381859665,0.31573825,95484.0,95483.0,0.23491319]
[1746381860171,0.10628955,95484.0,95483.0,0.23491319]
[1746381860473,0.17078955,95484.0,95483.0,0.23491319]
[1746381862072,0.17078955,95484.0,95483.0,0.26711319]
[1746381865074,0.16293416,95484.0,95483.0,0.26711319]
[1746381866669,0.16293416,95484.0,95483.0,0.2516508]
[1746381876679,0.15507877,95484.0,95483.0,0.26710031]
[1746381877684,0.15507877,95484.0,95483.0,0.29810031]
[1746381877887,0.15507877,95484.0,95483.0,0.2826508]
[1746381878688,0.15507877,95484.0,95483.0,0.0732]
[1746381879485,0.15507877,95484.0,95483.0,0.1033]
[1746381879688,0.15507877,95484.0,95483.0,0.3127508]
[1746381883790,0.15507877,95484.0,95483.0,0.3282235]
[1746381884285,0.36452747,95484.0,95483.0,0.3282235]
[1746381885584,0.15507877,95484.0,95483.0,0.3282235]
[1746381887092,0.14722338,95484.0,95483.0,0.3282235]
[1746381889287,0.11392338,95484.0,95483.0,0.3282235]
[1746381891890,0.11392338,95484.0,95483.0,0.3782235]
[1746381892789,0.08272338,95484.0,95483.0,0.3782235]
[1746381893099,0.08272338,95484.0,95483.0,0.8382235]
[1746381893288,0.08272338,95484.0,95483.0,0.3782235]
[1746381897403,0.0748681,95484.0,95483.0,0.3782235]
[1746381898203,0.0748681,95484.0,95483.0,0.8382235]
[1746381898592,0.0748681,95484.0,95483.0,0.3782235]
[1746381899294,0.0748681,95484.0,95483.0,0.8382235]
[1746381899495,0.0748681,95484.0,95483.0,0.3782235]
[1746381900089,0.0748681,95484.0,95483.0,0.9017035]
[1746381901197,0.004,95484.0,95483.0,0.9017035]
[1746381901505,0.004,95484.0,95483.0,0.4417035]
[1746381902007,0.004,95484.0,95483.0,0.9017035]
[1746381902903,0.004,95484.0,95483.0,0.4417035]
[1746381903206,0.122,95484.0,95483.0,0.4417035]
[1746381904203,0.122,95484.0,95483.0,0.9017035]
[1746381906010,0.122,95484.0,95483.0,0.4417035]
[1746381907412,0.122,95484.0,95483.0,0.9017035]
[1746381907612,0.11414474,95484.0,95483.0,0.9017035]
[1746381908107,0.0327,95488.0,95487.0,0.2094421]
[1746381908313,0.0327,95488.0,95487.0,0.3894421]
[1746381908512,0.0327,95488.0,95487.0,0.4049148]
[1746381909103,0.1507,95488.0,95487.0,0.4692148]
[1746381909411,0.1527,95488.0,95487.0,0.4692148]
[1746381910511,0.1547,95488.0,95487.0,0.4692148]
[1746381911913,0.3641399,95488.0,95487.0,0.4692148]
[1746381912503,0.1547,95488.0,95487.0,0.4692148]
[1746381913315,0.3641399,95488.0,95487.0,0.4692148]
[1746381918620,0.35628464,95488.0,95487.0,0.4692148]
[1746381918921,0.35628464,95488.0,95487.0,0.46952216]
[1746381928829,0.34842938,95488.0,95487.0,0.46952216]
[1746381933229,0.122,95488.0,95487.0,0.46952216]
[1746381936931,0.3314399,95488.0,95487.0,0.46952216]
[1746381938232,0.122,95488.0,95487.0,0.46952216]
[1746381938424,0.3314399,95488.0,95487.0,0.46952216]
[1746381938924,0.1141448,95488.0,95487.0,0.46952216]
[1746381939234,0.1141448,95488.0,95487.0,0.53300216]
[1746381948725,0.1062896,95488.0,95487.0,0.53300216]
[1746381949136,0.3157295,95488.0,95487.0,0.53300216]
[1746381953341,0.08009607,95490.0,95489.0,0.2094377]
[1746381953638,0.08009607,95490.0,95489.0,0.71521776]
[1746381954038,0.08009607,95490.0,95489.0,0.74561776]
[1746381954543,0.08209607,95490.0,95489.0,0.74561776]
[1746381955631,0.08309607,95490.0,95489.0,0.74561776]
[1746381958031,0.003,95490.0,95489.0,0.74561776]
[1746381959140,0.02604491,95492.0,95491.0,0.2094333]
[1746381959439,0.02604491,95492.0,95491.0,0.8594333]
[1746381959642,0.02604491,95492.0,95491.0,0.87521336]
[1746381959835,0.02604491,95492.0,95491.0,0.93821336]
[1746381960233,0.14404491,95492.0,95491.0,0.93821336]
[1746381960537,0.14504491,95492.0,95491.0,0.93821336]
[1746381960741,0.14604491,95492.0,95491.0,0.93821336]
[1746381962041,0.17894491,95492.0,95491.0,0.93821336]
[1746381964638,0.17894491,95492.0,95491.0,0.44551336]
[1746381965741,0.38837601,95492.0,95491.0,0.44551336]
[1746381966246,0.17894491,95492.0,95491.0,0.44551336]
[1746381969138,0.17108982,95492.0,95491.0,0.44551336]
[1746381975248,0.38052092,95492.0,95491.0,0.44551336]
[1746381976039,0.38052092,95492.0,95491.0,0.4297333]
[1746381976544,0.38052092,95492.0,95491.0,0.2203]
[1746381976739,0.2094355,95490.0,95489.0,0.2094368]
[1746381977242,0.3274355,95490.0,95489.0,0.3494368]
[1746381979049,0.3284355,95490.0,95489.0,0.3494368]
[1746381980350,0.2094596,95479.0,95469.0,0.20030936]
[1746381980651,0.2094816,95469.0,95462.0,0.06348]
[1746381980849,0.5702816,95469.0,95462.0,0.06348]
[1746381981049,0.6850296,95469.0,95462.0,0.06348]
[1746381981256,0.8030296,95469.0,95462.0,0.06348]
[1746381981444,0.8020296,95469.0,95463.0,0.2094942]
[1746381981954,0.8020296,95469.0,95465.0,0.0523724]
[1746381982149,0.8020296,95469.0,95468.0,0.21529854]
[1746381982652,0.8000296,95469.0,95468.0,0.21529854]
[1746381983155,0.81047622,95469.0,95468.0,0.21529854]
[1746381983455,0.88056076,95469.0,95468.0,0.002]
[1746381984353,0.97056076,95469.0,95468.0,0.002]
[1746381984548,0.2094859,95467.0,95466.0,0.0303]
[1746381984751,0.2694859,95467.0,95466.0,0.0303]
[1746381984951,0.3742339,95467.0,95466.0,0.0303]
[1746381985147,0.5231339,95467.0,95466.0,0.0303]
[1746381986050,0.5241339,95467.0,95466.0,0.0303]
[1746381988158,0.4193859,95467.0,95466.0,0.0303]
[1746381991860,0.4520859,95467.0,95466.0,0.0303]
[1746381995562,0.8128859,95467.0,95466.0,0.0303]
[1746382000166,0.2095189,95452.0,95451.0,0.20363511]
[1746382000365,0.2095189,95452.0,95451.0,0.52719511]
[1746382001164,0.2095189,95452.0,95451.0,0.32356]
[1746382001567,0.2095189,95452.0,95451.0,0.32556]
[1746382001858,0.2095189,95452.0,95451.0,0.32856]
[1746382003465,0.2095189,95452.0,95451.0,0.42436]
[1746382004057,0.21754986,95452.0,95451.0,0.42436]
[1746382007573,0.21754986,95452.0,95451.0,0.6338811]
[1746382011269,0.00803096,95452.0,95451.0,0.6338811]
[1746382011477,0.0307,95466.0,95455.0,0.2095123]
[1746382011677,0.2095111,95456.0,95455.0,0.58936519]
[1746382011975,0.2095111,95456.0,95455.0,0.5018894]
[1746382012670,0.2095111,95456.0,95455.0,0.5028894]
[1746382012874,0.2095111,95456.0,95455.0,0.5048894]
[1746382026385,0.2426111,95456.0,95455.0,0.5048894]
[1746382027085,0.3606111,95456.0,95455.0,0.5048894]
[1746382028988,0.3606111,95456.0,95455.0,0.5683694]
[1746382030280,0.2426111,95456.0,95455.0,0.5683694]
[1746382031191,0.3606111,95456.0,95455.0,0.5683694]
[1746382032387,0.3606111,95456.0,95455.0,0.5048894]
[1746382032590,0.3606111,95456.0,95455.0,0.5683694]
[1746382032888,0.3606111,95456.0,95455.0,0.5159923]
[1746382036091,0.3606111,95456.0,95455.0,0.5459923]
[1746382037607,0.3606111,95456.0,95455.0,0.5159923]
[1746382038098,0.08008454,95464.0,95459.0,0.2618745]
[1746382038284,0.2426991,95461.0,95460.0,0.2753013]
[1746382038593,0.2748991,95461.0,95460.0,0.5353013]
[1746382039994,0.0654,95461.0,95460.0,0.5353013]
[1746382040194,0.0654,95461.0,95460.0,0.5363013]
[1746382048297,0.0654,95461.0,95460.0,0.5035013]
[1746382049101,0.1834,95461.0,95460.0,0.5035013]
[1746382051293,0.0654,95461.0,95460.0,0.5035013]
[1746382052293,0.0654,95461.0,95460.0,0.4935013]
[1746382056004,0.0654,95461.0,95460.0,0.9535013]
[1746382057605,0.0654,95461.0,95460.0,0.711]
[1746382058604,0.0654,95461.0,95460.0,0.9205013]
[1746382061107,0.1834,95461.0,95460.0,0.9508013]
[1746382063101,0.1512,95461.0,95460.0,0.9508013]
[1746382063299,0.0332,95461.0,95460.0,1.0137013]
[1746382063709,0.0634,95461.0,95460.0,0.9829013]
[1746382069113,0.1814,95461.0,95460.0,0.9829013]
[1746382072313,0.0634,95461.0,95460.0,0.9829013]
[1746382074115,0.1814,95461.0,95460.0,0.9829013]
[1746382075316,0.0634,95461.0,95460.0,0.9829013]
[1746382076115,0.1814,95461.0,95460.0,0.9829013]
[1746382077117,0.0634,95461.0,95460.0,0.9829013]
[1746382077416,0.0634,95461.0,95460.0,1.0463813]
[1746382083119,0.1814,95461.0,95460.0,1.0463813]
[1746382084120,0.0634,95461.0,95460.0,1.0463813]
[1746382086115,0.1814,95461.0,95460.0,1.0463813]
[1746382087523,0.1814,95461.0,95460.0,1.0142813]
[1746382094327,0.1814,95461.0,95460.0,0.5642813]
[1746382094729,0.1814,95461.0,95460.0,0.5542813]
[1746382094928,0.1814,95461.0,95460.0,1.0142813]
[1746382110154,0.0634,95461.0,95460.0,1.0142813]
[1746382112154,0.1814,95461.0,95460.0,1.0142813]
[1746382118162,0.0634,95461.0,95460.0,1.0142813]
[1746382119065,0.1814,95461.0,95460.0,1.0142813]
[1746382124069,0.0634,95461.0,95460.0,1.0142813]
[1746382125068,0.1814,95461.0,95460.0,1.0142813]
[1746382130375,0.0634,95461.0,95460.0,1.0142813]
[1746382133079,0.1814,95461.0,95460.0,1.0142813]
[1746382134181,0.0634,95461.0,95460.0,1.0142813]
[1746382136076,0.1814,95461.0,95460.0,1.0142813]
[1746382139181,0.0634,95461.0,95460.0,1.0142813]
[1746382140382,0.1814,95461.0,95460.0,1.0142813]
[1746382146397,0.3908991,95461.0,95460.0,0.5239413]
[1746382147089,0.1814,95461.0,95460.0,0.5239413]
[1746382147689,0.1814,95461.0,95460.0,0.5550413]
[1746382150393,0.3908991,95461.0,95460.0,0.5550413]
[1746382154495,0.1814,95461.0,95460.0,0.5550413]
[1746382157195,0.1814,95461.0,95460.0,0.39346871]
[1746382157402,0.1814,95461.0,95460.0,0.43346871]
[1746382163400,0.10680738,95474.0,95467.0,0.2094859]
[1746382163596,0.0317,95473.0,95467.0,0.9294859]
[1746382163809,0.0317,95473.0,95467.0,0.94521001]
[1746382164406,0.0317,95473.0,95467.0,1.00871001]
[1746382164794,0.08108454,95468.0,95467.0,1.00871001]
[1746382165394,0.0732283,95468.0,95467.0,1.00871001]
[1746382166308,0.0722283,95468.0,95467.0,1.00871001]
[1746382166605,0.0722283,95468.0,95467.0,1.00971001]
[1746382167310,0.0722283,95468.0,95467.0,1.00871001]
[1746382167606,0.0722283,95468.0,95467.0,1.00971001]
[1746382168006,0.0317,95473.0,95472.0,0.209475]
[1746382168208,0.1497,95473.0,95472.0,0.939475]
[1746382168408,0.1497,95473.0,95472.0,0.95519911]
[1746382168601,0.1826,95473.0,95472.0,0.95519911]
[1746382168914,0.1826,95473.0,95472.0,0.971075]
[1746382169099,0.1826,95473.0,95472.0,1.034515]
[1746382169409,0.1836,95473.0,95472.0,1.034515]
[1746382170107,0.1836,95473.0,95472.0,1.0499274]
[1746382170707,0.1836,95473.0,95472.0,1.034515]
[1746382171811,0.1836,95473.0,95472.0,1.04992257]
[1746382172104,0.119,95473.0,95472.0,1.04992257]
[1746382172307,0.001,95473.0,95472.0,1.04992257]
[1746382174010,0.001,95473.0,95472.0,1.034515]
[1746382174011,0.0337,95473.0,95472.0,1.034515]
[1746382177012,0.02584384,95473.0,95472.0,1.04993731]
[1746382177418,0.02684384,95473.0,95472.0,1.04993731]
[1746382177801,0.02684384,95473.0,95472.0,1.034515]
[1746382178506,0.05844384,95473.0,95472.0,1.034515]
[1746382178812,0.05844384,95473.0,95472.0,0.574515]
[1746382179208,0.17644384,95473.0,95472.0,0.574515]
[1746382189420,0.17644384,95473.0,95472.0,0.576515]
[1746382190220,0.17544384,95473.0,95472.0,0.577515]
[1746382193620,0.17544384,95473.0,95472.0,0.575515]
[1746382193824,0.17544384,95473.0,95472.0,0.577515]
[1746382194125,0.17544384,95473.0,95472.0,0.576515]
[1746382194419,0.17544384,95473.0,95472.0,0.577515]
[1746382195426,0.17544384,95473.0,95472.0,0.576515]
[1746382203231,0.48966064,95473.0,95472.0,0.3036]
[1746382203428,0.55966064,95473.0,95472.0,0.002]
[1746382204828,0.55966064,95473.0,95472.0,0.211475]
[1746382206031,0.92046064,95473.0,95472.0,0.211475]
[1746382206443,0.92046064,95473.0,95472.0,0.210475]
[1746382206737,0.92146064,95473.0,95472.0,0.210475]
[1746382206926,0.92146064,95473.0,95472.0,0.209475]
[1746382207835,0.2094794,95470.0,95469.0,0.0831702]
[1746382208031,0.2194794,95470.0,95469.0,0.0523702]
[1746382208231,0.3374794,95470.0,95469.0,0.0523702]
[1746382208637,0.3680794,95470.0,95469.0,0.2618452]
[1746382209140,0.3690794,95470.0,95469.0,0.2618452]
[1746382209738,0.0523708,95469.0,95462.0,0.0523739]
[1746382209930,0.5702947,95463.0,95462.0,0.3029655]
[1746382210241,0.5902947,95463.0,95462.0,0.3029655]
[1746382210827,0.6209947,95463.0,95462.0,0.3029655]
[1746382211037,0.6209947,95463.0,95462.0,0.3039655]
[1746382211238,0.7389947,95463.0,95462.0,0.3039655]
[1746382211536,0.7389947,95463.0,95462.0,0.3049655]
[1746382211939,0.7389947,95463.0,95462.0,0.2525916]
[1746382213033,0.7389947,95463.0,95462.0,0.0431]
[1746382214541,0.8437467,95463.0,95462.0,0.002]
[1746382214731,0.0523762,95459.0,95447.0,0.00157154]
[1746382214930,0.5703277,95448.0,95447.0,4e-08]
[1746382215231,0.209554,95436.0,95435.0,0.1585692]
[1746382215436,0.710354,95436.0,95435.0,1e-08]
[1746382215636,0.81513801,95436.0,95435.0,1e-08]
[1746382216138,0.93313801,95436.0,95435.0,1e-08]
[1746382216735,0.92313801,95436.0,95435.0,1e-08]
[1746382216935,0.4788,95436.0,95435.0,0.30955621]
[1746382217237,0.3608,95436.0,95435.0,0.78755621]
[1746382217633,0.570354,95436.0,95435.0,0.78755621]
[1746382217833,0.209554,95436.0,95435.0,0.84795621]
[1746382218034,0.001,95436.0,95435.0,0.84795621]
[1746382218233,0.001,95436.0,95435.0,0.72995621]
[1746382219243,0.001,95436.0,95435.0,0.7299562]
[1746382219448,0.10680738,95437.0,95436.0,0.209554]
[1746382219742,0.10680738,95437.0,95436.0,0.909554]
[1746382219943,0.10680738,95437.0,95436.0,0.971454]
[1746382223144,0.2095413,95442.0,95441.0,0.209543]
[1746382223445,0.2095413,95442.0,95441.0,0.399543]
[1746382223643,0.2420347,95445.0,95444.0,0.2095364]
[1746382223832,0.2420347,95445.0,95444.0,0.3795364]
[1746382224227,0.3600347,95445.0,95444.0,0.3795364]
[1746382224427,0.3600347,95445.0,95444.0,0.4096364]
[1746382225639,0.1505,95445.0,95444.0,0.4196364]
[1746382225843,0.1505,95445.0,95444.0,0.4096364]
[1746382226036,0.3620342,95445.0,95444.0,0.4096364]
[1746382226543,0.3630342,95445.0,95444.0,0.4096364]
[1746382227545,0.0523931,95429.0,95424.0,0.06344]
[1746382227753,0.2619773,95427.0,95426.0,0.2095738]
[1746382228047,0.3119773,95427.0,95426.0,0.2095738]
[1746382228237,0.4299773,95427.0,95426.0,0.2095738]
[1746382228841,0.4631773,95427.0,95426.0,0.2095738]
[1746382229038,0.4631773,95427.0,95426.0,0.2115738]
[1746382230146,0.4107825,95427.0,95426.0,0.2115738]
[1746382231250,0.4107825,95427.0,95426.0,0.2135738]
[1746382232242,0.4107825,95427.0,95426.0,0.2115738]
[1746382232547,0.4107825,95427.0,95426.0,0.2095738]
[1746382233150,0.4107825,95427.0,95425.0,0.031]
[1746382233349,0.240776,95426.0,95425.0,0.2405782]
[1746382233542,0.260776,95426.0,95425.0,0.2405782]
[1746382233741,0.291176,95426.0,95425.0,0.2405782]
[1746382234144,0.409176,95426.0,95425.0,0.2405782]
[1746382234644,0.410176,95426.0,95425.0,0.2405782]
[1746382239150,0.292176,95426.0,95425.0,0.2405782]
[1746382241139,0.410176,95426.0,95425.0,0.2405782]
[1746382242253,0.292176,95426.0,95425.0,0.2405782]
[1746382243153,0.410176,95426.0,95425.0,0.2405782]
[1746382244355,0.2095957,95417.0,95416.0,0.00157215]
[1746382244648,0.2096045,95413.0,95407.0,0.0305]
[1746382244848,0.2596045,95413.0,95405.0,0.00104816]
[1746382245044,0.2596045,95413.0,95407.0,0.2096169]
[1746382245250,0.3776045,95413.0,95407.0,0.2096169]
[1746382245652,0.3756045,95413.0,95408.0,0.0324]
[1746382245850,0.3756045,95413.0,95408.0,0.2420147]
[1746382246051,0.4060045,95413.0,95409.0,0.2096129]
[1746382246257,0.4060045,95413.0,95412.0,0.21117882]
[1746382247654,0.4060045,95413.0,95412.0,0.21417882]
[1746382249458,0.3560045,95413.0,95412.0,0.25417882]
[1746382250261,0.3560045,95413.0,95412.0,0.28697882]
[1746382251054,0.3560045,95413.0,95412.0,0.30697882]
[1746382253661,0.3570045,95413.0,95412.0,0.30397882]
[1746382255363,0.3570045,95413.0,95412.0,0.27117882]
[1746382256462,0.3570045,95413.0,95412.0,0.25117882]
[1746382257966,0.3570045,95413.0,95412.0,0.04157212]
[1746382258166,0.3570045,95413.0,95412.0,0.22117882]
[1746382262270,0.3570045,95413.0,95412.0,0.25217882]
[1746382274181,0.4070045,95413.0,95412.0,0.25217882]
[1746382274879,0.4070045,95413.0,95412.0,0.04257212]
[1746382277482,0.4070045,95413.0,95412.0,0.25217882]
[1746382277785,0.4070045,95413.0,95412.0,0.31707882]
[1746382279586,0.4070045,95413.0,95412.0,0.10747212]
[1746382280284,0.4070045,95413.0,95412.0,0.07497212]
[1746382287189,0.0814,95413.0,95405.0,0.00104816]
[1746382287390,0.2096265,95403.0,95402.0,0.0332]
[1746382287593,0.2596265,95403.0,95402.0,0.0332]
[1746382288283,0.3208265,95403.0,95402.0,0.0332]
[1746382288590,0.3198265,95403.0,95402.0,0.0332]
[1746382289188,0.4378265,95403.0,95402.0,0.0332]
[1746382289493,0.4378265,95403.0,95402.0,0.0362]
[1746382291192,0.3198265,95403.0,95402.0,0.0362]
[1746382291391,0.0524109,95396.0,95391.0,0.21346685]
[1746382291586,0.5704507,95392.0,95391.0,0.21346685]
[1746382291794,0.6589531,95392.0,95391.0,0.21346685]
[1746382292088,0.7769531,95392.0,95391.0,0.21346685]
[1746382292294,0.2096682,95384.0,95383.0,0.26618828]
[1746382292494,0.6204682,95384.0,95383.0,0.26618828]
[1746382292684,0.6174682,95384.0,95383.0,0.26618828]
[1746382293194,0.2096792,95379.0,95378.0,0.0331]
[1746382293495,0.2396792,95379.0,95378.0,0.0331]
[1746382294089,0.2697792,95379.0,95378.0,0.0331]
[1746382294289,0.3024792,95379.0,95378.0,0.0331]
[1746382294797,0.2964792,95379.0,95378.0,0.0331]
[1746382295399,0.2964792,95379.0,95378.0,0.0401]
[1746382297002,0.2964792,95379.0,95378.0,0.0725]
[1746382297887,0.2964792,95379.0,95378.0,0.2821814]
[1746382298291,0.2964792,95379.0,95378.0,0.0725]
[1746382299302,0.2637792,95379.0,95378.0,0.2821814]
[1746382299503,0.2036792,95379.0,95378.0,0.3121814]
[1746382300201,0.2036792,95379.0,95378.0,0.4301814]
[1746382300602,0.2036792,95379.0,95378.0,0.4271814]
[1746382301203,0.2046792,95379.0,95378.0,0.3061814]
[1746382302006,0.2046792,95379.0,95378.0,0.4061814]
[1746382303812,0.001,95379.0,95378.0,0.5110254]
[1746382304110,0.001,95379.0,95378.0,0.6290254]
[1746382304508,0.001,95379.0,95378.0,1.0690254]
[1746382313611,0.3608,95395.0,95390.0,0.0524133]